Workbook

Sheet Instruções
B2: Instruções
B4: A RenovaCalc é uma ferramenta de cálculo de emissões de Gases de Efeito Estufa (GEE) de biocombustíveis, de acordo com o referencial metodológico estabelecido pelo programa RenovaBio.
B6: O responsável pelo preenchimento deve estar atento às seguintes diretrizes:
B8: 1. Só devem ser preenchidas as células demarcadas em pontilhado: | G8: Ao optar pelo "padrão", estas células serão automaticamente preenchidas pela RenovaCalc
B10: 2. A unidade de preenchimento de cada parâmetro é padrão estará sempre indicada ao lado da célula que deve ser preenchida. Por exemplo: | I10: Ureia | K10: kg N/TC
B12: 2.1. O usuário deve sempre inserir os dados na unidade pré-indicada, sendo considerado incorreto qualquer dado que esteja em outra unidade
B14: 2.2. Ao selecionar a célula a ser preenchida, orientações de como preencher cada parâmetro serão fornecidas. Por exemplo:

Sheet Cadastro de Fornecedores
B2: Cadastro de Fornecedores de Cana-de-açúcar
B5: Identificação do fornecedor | C5: Número de registro no CAR | D5: Área total | E5: Produção total colhida para moagem | F5: Opção de preenchimento
D6: ha | E6: t cana
B7: ='F1'!$C$4 -> Fornecedor Hipotético 1 | C7: ='F1'!$D$18 -> UF-1302405-E6D3.395B.6D27.4F42.AE22.DD56.987C.DD51 | D7: ='F1'!$D$23 -> 1000 | E7: ='F1'!$D$25 -> 66735.2001 | F7: =CONCATENATE("Dados ",'F1'!$B$32) -> Dados Primários
B8: ='F2'!$C$4 -> Fornecedor Hipotético 2 | C8: ='F2'!$D$18 -> UF-1302405-E6D3.395B.6D27.4F42.AE22.DD56.987C.DD52 | D8: ='F2'!$D$23 -> 1000 | E8: ='F2'!$D$25 -> 66735.2001 | F8: =CONCATENATE("Dados ",'F2'!$B$32) -> Dados Primários
B9: ='F3'!$C$4 -> Fornecedor Hipotético 3 | C9: ='F3'!$D$18 -> UF-1302405-E6D3.395B.6D27.4F42.AE22.DD56.987C.DD53 | D9: ='F3'!$D$23 -> 1000 | E9: ='F3'!$D$25 -> 66735.2001 | F9: =CONCATENATE("Dados ",'F3'!$B$32) -> Dados Primários
B10: ='F4'!$C$4 -> Fornecedor Hipotético 4 | C10: ='F4'!$D$18 -> UF-1302405-E6D3.395B.6D27.4F42.AE22.DD56.987C.DD54 | D10: ='F4'!$D$23 -> 1000 | E10: ='F4'!$D$25 -> 66735.2001 | F10: =CONCATENATE("Dados ",'F4'!$B$32) -> Dados Primários
B11: ='F5'!$C$4 -> Fornecedor Hipotético 5 | C11: ='F5'!$D$18 -> UF-1302405-E6D3.395B.6D27.4F42.AE22.DD56.987C.DD55 | D11: ='F5'!$D$23 -> 1000 | E11: ='F5'!$D$25 -> 66735.2001 | F11: =CONCATENATE("Dados ",'F5'!$B$32) -> Dados Primários
B12: Adicionar fornecedor*
B13: *Funcionalidade a ser inserida no sistema informatizado

Sheet Consolidado
B2: Fornecedores de Cana-de-Açúcar
B4: Nome da Usina: | C4: Usina Hipotética
B6: CNPJ: | C6: 00.000.000/0000-00
B8: Responsável pelo preenchimento: | C8: GT ACV RenovaCalc
B10: Telefone : | C10: (00) 0000-0000
B13: Fornecedores - Dados consolidados
B14: Informações gerais
B15: Houve supressão de vegetação nativa a partir de 26 de dezembro de 2017? | D15: =IF(OR('F1'!D15="Sim",'F2'!D15="Sim",'F3'!D15="Sim",'F4'!D15="Sim",'F5'!D15="Sim"),"Sim","Não") -> Não
C16: Usina atende ao ZAE Cana? | D16: =IF(OR('F1'!D16="Não",'F2'!D16="Não",'F3'!D16="Não",'F4'!D16="Não",'F5'!D16="Não"),"Não","Sim") -> Sim
C18: Número de registro no CAR | D18: Cadastro de fornecedores
C20: Situação do CAR | D20: =IF(AND('F1'!D20="Ativo",'F2'!D20="Ativo",'F3'!D20="Ativo",'F4'!D20="Ativo",'F5'!D20="Ativo"),"Ativo",IF(OR('F1'!D20="Cancelado",'F2'!D20="Cancelado",'F3'!D20="Cancelado",'F4'!D20="Cancelado",'F5'!D20="Cancelado"),"Cancelado","Pendente")) -> Ativo
C22: Sistema de plantio | D22: Convencional
C23: Área total | D23: ='F1'!D23+'F2'!D23+'F3'!D23+'F4'!D23+'F5'!D23 -> 5000 | E23: ha
C25: Produção total colhida para moagem | D25: ='F1'!D25+'F2'!D25+'F3'!D25+'F4'!D25+'F5'!D25 -> 333676.0005 | E25: t cana
C26: Teor de impurezas vegetais (base úmida) | D26: =('F1'!D26*'F1'!$D$25+'F2'!D26*'F2'!$D$25+'F3'!D26*'F3'!$D$25+'F4'!D26*'F4'!$D$25+'F5'!D26*'F5'!$D$25)/$D$25 -> 50 | E26: kg/t cana | F26: Umidade | G26: =IF(('F1'!D26*'F1'!$D$25+'F2'!D26*'F2'!$D$25+'F3'!D26*'F3'!$D$25+'F4'!D26*'F4'!$D$25+'F5'!D26*'F5'!$D$25)<>0,('F1'!G26*'F1'!D26*'F1'!$D$25+'F2'!G26*'F2'!D26*'F2'!$D$25+'F3'!G26*'F3'!D26*'F3'!$D$25+'F4'!G26*'F4'!D26*'F4'!$D$25+'F5'!G26*'F5'!D26*'F5'!$D$25)/('F1'!D26*'F1'!$D$25+'F2'!D26*'F2'!$D$25+'F3'!D26*'F3'!$D$25+'F4'!D26*'F4'!$D$25+'F5'!D26*'F5'!$D$25),0) -> 0.5
C27: Teor de impurezas minerais | D27: =('F1'!D27*'F1'!$D$25+'F2'!D27*'F2'!$D$25+'F3'!D27*'F3'!$D$25+'F4'!D27*'F4'!$D$25+'F5'!D27*'F5'!$D$25)/$D$25 -> 20 | E27: kg/t cana
C28: Palha recolhida (base seca) | D28: ='F1'!D28+'F2'!D28+'F3'!D28+'F4'!D28+'F5'!D28 -> 0 | E28: t palha
B30: Tipo de preenchimento
B31: Tipo de dados forneceidos pelos fornecedores:
B32: Em função das informações de cada fornecedor
B34: Área Queimada
C35: Área queimada | D35: ='F1'!D35+'F2'!D35+'F3'!D35+'F4'!D35+'F5'!D35 -> 920 | E35: ha
B37: Corretivos
C38: Calcário calcítico | D38: =('F1'!D38*'F1'!$D$25+'F2'!D38*'F2'!$D$25+'F3'!D38*'F3'!$D$25+'F4'!D38*'F4'!$D$25+'F5'!D38*'F5'!$D$25)/$D$25 -> 0 | E38: kg/t cana
C39: Calcário dolomítico | D39: =('F1'!D39*'F1'!$D$25+'F2'!D39*'F2'!$D$25+'F3'!D39*'F3'!$D$25+'F4'!D39*'F4'!$D$25+'F5'!D39*'F5'!$D$25)/$D$25 -> 5.79 | E39: kg/t cana
C40: Gesso | D40: =('F1'!D40*'F1'!$D$25+'F2'!D40*'F2'!$D$25+'F3'!D40*'F3'!$D$25+'F4'!D40*'F4'!$D$25+'F5'!D40*'F5'!$D$25)/$D$25 -> 2.79 | E40: kg/t cana
B42: Fertilizantes Sintéticos
C43: Ureia | D43: =('F1'!D43*'F1'!$D$25+'F2'!D43*'F2'!$D$25+'F3'!D43*'F3'!$D$25+'F4'!D43*'F4'!$D$25+'F5'!D43*'F5'!$D$25)/$D$25 -> 1.107 | E43: kg N/t cana
C44: Fosfato monoamônico (MAP) | D44: =('F1'!D44*'F1'!$D$25+'F2'!D44*'F2'!$D$25+'F3'!D44*'F3'!$D$25+'F4'!D44*'F4'!$D$25+'F5'!D44*'F5'!$D$25)/$D$25 -> 0 | E44: kg N/t cana
C45: Fosfato monoamônico (MAP) | D45: =('F1'!D45*'F1'!$D$25+'F2'!D45*'F2'!$D$25+'F3'!D45*'F3'!$D$25+'F4'!D45*'F4'!$D$25+'F5'!D45*'F5'!$D$25)/$D$25 -> 0 | E45: kg P₂O₅/t cana
C46: Fosfato diamônico (DAP) | D46: =('F1'!D46*'F1'!$D$25+'F2'!D46*'F2'!$D$25+'F3'!D46*'F3'!$D$25+'F4'!D46*'F4'!$D$25+'F5'!D46*'F5'!$D$25)/$D$25 -> 0 | E46: kg N/t cana
C47: Fosfato diamônico (DAP) | D47: =('F1'!D47*'F1'!$D$25+'F2'!D47*'F2'!$D$25+'F3'!D47*'F3'!$D$25+'F4'!D47*'F4'!$D$25+'F5'!D47*'F5'!$D$25)/$D$25 -> 0 | E47: kg P₂O₅/t cana
C48: Nitrato de amônio | D48: =('F1'!D48*'F1'!$D$25+'F2'!D48*'F2'!$D$25+'F3'!D48*'F3'!$D$25+'F4'!D48*'F4'!$D$25+'F5'!D48*'F5'!$D$25)/$D$25 -> 0 | E48: kg N/t cana
C49: Solução de nitrato de amônio e ureia (UAN) | D49: =('F1'!D49*'F1'!$D$25+'F2'!D49*'F2'!$D$25+'F3'!D49*'F3'!$D$25+'F4'!D49*'F4'!$D$25+'F5'!D49*'F5'!$D$25)/$D$25 -> 0 | E49: kg N/t cana
C50: Amônia anidra | D50: =('F1'!D50*'F1'!$D$25+'F2'!D50*'F2'!$D$25+'F3'!D50*'F3'!$D$25+'F4'!D50*'F4'!$D$25+'F5'!D50*'F5'!$D$25)/$D$25 -> 0 | E50: kg N/t cana
C51: Sulfato de amônio | D51: =('F1'!D51*'F1'!$D$25+'F2'!D51*'F2'!$D$25+'F3'!D51*'F3'!$D$25+'F4'!D51*'F4'!$D$25+'F5'!D51*'F5'!$D$25)/$D$25 -> 0 | E51: kg N/t cana
C52: Nitrato de amônio e cálcio (CAN) | D52: =('F1'!D52*'F1'!$D$25+'F2'!D52*'F2'!$D$25+'F3'!D52*'F3'!$D$25+'F4'!D52*'F4'!$D$25+'F5'!D52*'F5'!$D$25)/$D$25 -> 0 | E52: kg N/t cana
C53: Superfosfato simples (SSP) | D53: =('F1'!D53*'F1'!$D$25+'F2'!D53*'F2'!$D$25+'F3'!D53*'F3'!$D$25+'F4'!D53*'F4'!$D$25+'F5'!D53*'F5'!$D$25)/$D$25 -> 0.4438988334 | E53: kg P₂O₅/t cana
C54: Superfosfato triplo (TSP) | D54: =('F1'!D54*'F1'!$D$25+'F2'!D54*'F2'!$D$25+'F3'!D54*'F3'!$D$25+'F4'!D54*'F4'!$D$25+'F5'!D54*'F5'!$D$25)/$D$25 -> 0 | E54: kg P₂O₅/t cana
C55: Cloreto de potássio (KCl) | D55: =('F1'!D55*'F1'!$D$25+'F2'!D55*'F2'!$D$25+'F3'!D55*'F3'!$D$25+'F4'!D55*'F4'!$D$25+'F5'!D55*'F5'!$D$25)/$D$25 -> 1.346204902 | E55: kg K₂O/t cana
B56: Outros | C56: especificar | D56: =('F1'!D56*'F1'!$D$25+'F2'!D56*'F2'!$D$25+'F3'!D56*'F3'!$D$25+'F4'!D56*'F4'!$D$25+'F5'!D56*'F5'!$D$25)/$D$25 -> 0 | E56: kg N/t cana
B57: Outros | C57: especificar | D57: =('F1'!D57*'F1'!$D$25+'F2'!D57*'F2'!$D$25+'F3'!D57*'F3'!$D$25+'F4'!D57*'F4'!$D$25+'F5'!D57*'F5'!$D$25)/$D$25 -> 0 | E57: kg P₂O₅/t cana
B58: Outros | C58: especificar | D58: =('F1'!D58*'F1'!$D$25+'F2'!D58*'F2'!$D$25+'F3'!D58*'F3'!$D$25+'F4'!D58*'F4'!$D$25+'F5'!D58*'F5'!$D$25)/$D$25 -> 0 | E58: kg K₂O/t cana
B60: Fertilizantes Orgânicos/Organominerais
C61: Vinhaça | D61: =('F1'!D61*'F1'!$D$25+'F2'!D61*'F2'!$D$25+'F3'!D61*'F3'!$D$25+'F4'!D61*'F4'!$D$25+'F5'!D61*'F5'!$D$25)/$D$25 -> 440.2 | E61: L/t cana | F61: Concentração de N | G61: =IF(('F1'!D61*'F1'!$D$25+'F2'!D61*'F2'!$D$25+'F3'!D61*'F3'!$D$25+'F4'!D61*'F4'!$D$25+'F5'!D61*'F5'!$D$25)<>0,('F1'!G61*'F1'!D61*'F1'!$D$25+'F2'!G61*'F2'!D61*'F2'!$D$25+'F3'!G61*'F3'!D61*'F3'!$D$25+'F4'!G61*'F4'!D61*'F4'!$D$25+'F5'!G61*'F5'!D61*'F5'!$D$25)/('F1'!D61*'F1'!$D$25+'F2'!D61*'F2'!$D$25+'F3'!D61*'F3'!$D$25+'F4'!D61*'F4'!$D$25+'F5'!D61*'F5'!$D$25),0) -> 0.375 | H61: g N/L
C62: Torta de Filtro (base úmida) | D62: =('F1'!D62*'F1'!$D$25+'F2'!D62*'F2'!$D$25+'F3'!D62*'F3'!$D$25+'F4'!D62*'F4'!$D$25+'F5'!D62*'F5'!$D$25)/$D$25 -> 30.57142857 | E62: kg/t cana | F62: Concentração de N | G62: =IF(('F1'!D62*'F1'!$D$25+'F2'!D62*'F2'!$D$25+'F3'!D62*'F3'!$D$25+'F4'!D62*'F4'!$D$25+'F5'!D62*'F5'!$D$25)<>0,('F1'!G62*'F1'!D62*'F1'!$D$25+'F2'!G62*'F2'!D62*'F2'!$D$25+'F3'!G62*'F3'!D62*'F3'!$D$25+'F4'!G62*'F4'!D62*'F4'!$D$25+'F5'!G62*'F5'!D62*'F5'!$D$25)/('F1'!D62*'F1'!$D$25+'F2'!D62*'F2'!$D$25+'F3'!D62*'F3'!$D$25+'F4'!D62*'F4'!$D$25+'F5'!D62*'F5'!$D$25),0) -> 14 | H62: g N/kg
C63: Cinzas e fuligem (base úmida) | D63: =('F1'!D63*'F1'!$D$25+'F2'!D63*'F2'!$D$25+'F3'!D63*'F3'!$D$25+'F4'!D63*'F4'!$D$25+'F5'!D63*'F5'!$D$25)/$D$25 -> 7.2 | E63: kg/t cana | F63: Concentração de N | G63: =IF(('F1'!D63*'F1'!$D$25+'F2'!D63*'F2'!$D$25+'F3'!D63*'F3'!$D$25+'F4'!D63*'F4'!$D$25+'F5'!D63*'F5'!$D$25)<>0,('F1'!G63*'F1'!D63*'F1'!$D$25+'F2'!G63*'F2'!D63*'F2'!$D$25+'F3'!G63*'F3'!D63*'F3'!$D$25+'F4'!G63*'F4'!D63*'F4'!$D$25+'F5'!G63*'F5'!D63*'F5'!$D$25)/('F1'!D63*'F1'!$D$25+'F2'!D63*'F2'!$D$25+'F3'!D63*'F3'!$D$25+'F4'!D63*'F4'!$D$25+'F5'!D63*'F5'!$D$25),0) -> 0 | H63: g N/kg
B64: Outros | C64: especificar | D64: =('F1'!D64*'F1'!$D$25+'F2'!D64*'F2'!$D$25+'F3'!D64*'F3'!$D$25+'F4'!D64*'F4'!$D$25+'F5'!D64*'F5'!$D$25)/$D$25 -> 0 | E64: kg/t cana | F64: Concentração de N | G64: =IF(('F1'!D64*'F1'!$D$25+'F2'!D64*'F2'!$D$25+'F3'!D64*'F3'!$D$25+'F4'!D64*'F4'!$D$25+'F5'!D64*'F5'!$D$25)<>0,('F1'!G64*'F1'!D64*'F1'!$D$25+'F2'!G64*'F2'!D64*'F2'!$D$25+'F3'!G64*'F3'!D64*'F3'!$D$25+'F4'!G64*'F4'!D64*'F4'!$D$25+'F5'!G64*'F5'!D64*'F5'!$D$25)/('F1'!D64*'F1'!$D$25+'F2'!D64*'F2'!$D$25+'F3'!D64*'F3'!$D$25+'F4'!D64*'F4'!$D$25+'F5'!D64*'F5'!$D$25),0) -> 0 | H64: g N/kg
B65: Outros | C65: especificar | D65: =('F1'!D65*'F1'!$D$25+'F2'!D65*'F2'!$D$25+'F3'!D65*'F3'!$D$25+'F4'!D65*'F4'!$D$25+'F5'!D65*'F5'!$D$25)/$D$25 -> 0 | E65: kg/t cana | F65: Concentração de N | G65: =IF(('F1'!D65*'F1'!$D$25+'F2'!D65*'F2'!$D$25+'F3'!D65*'F3'!$D$25+'F4'!D65*'F4'!$D$25+'F5'!D65*'F5'!$D$25)<>0,('F1'!G65*'F1'!D65*'F1'!$D$25+'F2'!G65*'F2'!D65*'F2'!$D$25+'F3'!G65*'F3'!D65*'F3'!$D$25+'F4'!G65*'F4'!D65*'F4'!$D$25+'F5'!G65*'F5'!D65*'F5'!$D$25)/('F1'!D65*'F1'!$D$25+'F2'!D65*'F2'!$D$25+'F3'!D65*'F3'!$D$25+'F4'!D65*'F4'!$D$25+'F5'!D65*'F5'!$D$25),0) -> 0 | H65: g N/kg
B67: Combustíveis e eletricidade da rede
C68: Diesel - B8 | D68: =('F1'!D68*'F1'!$D$25+'F2'!D68*'F2'!$D$25+'F3'!D68*'F3'!$D$25+'F4'!D68*'F4'!$D$25+'F5'!D68*'F5'!$D$25)/$D$25 -> 3.18 | E68: L/t cana
C69: Diesel - B10 | D69: =('F1'!D69*'F1'!$D$25+'F2'!D69*'F2'!$D$25+'F3'!D69*'F3'!$D$25+'F4'!D69*'F4'!$D$25+'F5'!D69*'F5'!$D$25)/$D$25 -> 0 | E69: L/t cana
C70: Diesel - BX | D70: =('F1'!D70*'F1'!$D$25+'F2'!D70*'F2'!$D$25+'F3'!D70*'F3'!$D$25+'F4'!D70*'F4'!$D$25+'F5'!D70*'F5'!$D$25)/$D$25 -> 0 | E70: L/t cana | F70: Teor de biodiesel na mistura | G70: =IF(('F1'!D70*'F1'!$D$25+'F2'!D70*'F2'!$D$25+'F3'!D70*'F3'!$D$25+'F4'!D70*'F4'!$D$25+'F5'!D70*'F5'!$D$25)<>0,('F1'!G70*'F1'!D70*'F1'!$D$25+'F2'!G70*'F2'!D70*'F2'!$D$25+'F3'!G70*'F3'!D70*'F3'!$D$25+'F4'!G70*'F4'!D70*'F4'!$D$25+'F5'!G70*'F5'!D70*'F5'!$D$25)/('F1'!D70*'F1'!$D$25+'F2'!D70*'F2'!$D$25+'F3'!D70*'F3'!$D$25+'F4'!D70*'F4'!$D$25+'F5'!D70*'F5'!$D$25),0) -> 0
C71: Diesel - B20 | D71: =('F1'!D71*'F1'!$D$25+'F2'!D71*'F2'!$D$25+'F3'!D71*'F3'!$D$25+'F4'!D71*'F4'!$D$25+'F5'!D71*'F5'!$D$25)/$D$25 -> 0 | E71: L/t cana
C72: Diesel - B30 | D72: =('F1'!D72*'F1'!$D$25+'F2'!D72*'F2'!$D$25+'F3'!D72*'F3'!$D$25+'F4'!D72*'F4'!$D$25+'F5'!D72*'F5'!$D$25)/$D$25 -> 0 | E72: L/t cana
C73: Biodiesel - B100 | D73: =('F1'!D73*'F1'!$D$25+'F2'!D73*'F2'!$D$25+'F3'!D73*'F3'!$D$25+'F4'!D73*'F4'!$D$25+'F5'!D73*'F5'!$D$25)/$D$25 -> 0 | E73: L/t cana
C74: Gasolina C | D74: =('F1'!D74*'F1'!$D$25+'F2'!D74*'F2'!$D$25+'F3'!D74*'F3'!$D$25+'F4'!D74*'F4'!$D$25+'F5'!D74*'F5'!$D$25)/$D$25 -> 0 | E74: L/t cana
C75: Etanol hidratado | D75: =('F1'!D75*'F1'!$D$25+'F2'!D75*'F2'!$D$25+'F3'!D75*'F3'!$D$25+'F4'!D75*'F4'!$D$25+'F5'!D75*'F5'!$D$25)/$D$25 -> 0 | E75: L/t cana
C76: Biometano de terceiros | D76: =('F1'!D76*'F1'!$D$25+'F2'!D76*'F2'!$D$25+'F3'!D76*'F3'!$D$25+'F4'!D76*'F4'!$D$25+'F5'!D76*'F5'!$D$25)/$D$25 -> 0 | E76: Nm³/t cana
C77: Biometano próprio | D77: =('F1'!D77*'F1'!$D$25+'F2'!D77*'F2'!$D$25+'F3'!D77*'F3'!$D$25+'F4'!D77*'F4'!$D$25+'F5'!D77*'F5'!$D$25)/$D$25 -> 0 | E77: Nm³/t cana
C78: Eletricidade da rede - mix médio | D78: =('F1'!D78*'F1'!$D$25+'F2'!D78*'F2'!$D$25+'F3'!D78*'F3'!$D$25+'F4'!D78*'F4'!$D$25+'F5'!D78*'F5'!$D$25)/$D$25 -> 0 | E78: kWh/t cana
C79: Eletricidade - PCH | D79: =('F1'!D79*'F1'!$D$25+'F2'!D79*'F2'!$D$25+'F3'!D79*'F3'!$D$25+'F4'!D79*'F4'!$D$25+'F5'!D79*'F5'!$D$25)/$D$25 -> 0 | E79: kWh/t cana
C80: Eletricidade - biomassa | D80: =('F1'!D80*'F1'!$D$25+'F2'!D80*'F2'!$D$25+'F3'!D80*'F3'!$D$25+'F4'!D80*'F4'!$D$25+'F5'!D80*'F5'!$D$25)/$D$25 -> 0 | E80: kWh/t cana
C81: Eletricidade - eólica | D81: =('F1'!D81*'F1'!$D$25+'F2'!D81*'F2'!$D$25+'F3'!D81*'F3'!$D$25+'F4'!D81*'F4'!$D$25+'F5'!D81*'F5'!$D$25)/$D$25 -> 0 | E81: kWh/t cana
C82: Eletricidade - solar | D82: =('F1'!D82*'F1'!$D$25+'F2'!D82*'F2'!$D$25+'F3'!D82*'F3'!$D$25+'F4'!D82*'F4'!$D$25+'F5'!D82*'F5'!$D$25)/$D$25 -> 0 | E82: kWh/t cana

Sheet F1
B2: Fornecedor de Cana-de-Açúcar
B4: Identificação do fornecedor: | C4: Fornecedor Hipotético 1
B6: CNPJ/CPF: | C6: 00.000.000/0000-00
B8: Responsável pelo preenchimento: | C8: GT ACV RenovaCalc
B10: Telefone : | C10: (00) 0000-0000
B13: Fornecedor | K13: Default - Cana | T13: Guarda dados de preenchimento
B14: Informações gerais | K14: Informações gerais | T14: Informações gerais
B15: Houve supressão de vegetação nativa a partir de 26 de dezembro de 2017? | D15: Não
C16: Usina atende ao ZAE Cana? | D16: Sim
C18: Número de registro no CAR (ou número de protocolo) | D18: UF-1302405-E6D3.395B.6D27.4F42.AE22.DD56.987C.DD51
C20: Situação do CAR | D20: Ativo
C22: Sistema de plantio | D22: Convencional
C23: Área total | D23: 1000 | E23: ha
C25: Produção total colhida para moagem | D25: 66735.2001 | E25: t cana
C26: Teor de impurezas vegetais (base úmida) | D26: 50 | E26: kg/t cana | F26: Umidade | G26: 0.5
C27: Teor de impurezas minerais | D27: 20 | E27: kg/t cana
C28: Palha recolhida (base seca) | D28: 0 | E28: t palha
B30: Tipo de preenchimento | K30: Tipo de preenchimento | T30: Tipo de preenchimento
B31: Tipo de dados forneceidos pelo fornecedor: | M31: Padrão | V31: Primários
B32: =V31 -> Primários
B34: Área Queimada | K34: Área Queimada | T34: Área Queimada
C35: Área queimada | D35: 184 | E35: ha | L35: Área queimada | M35: 1 | N35: % da área total | U35: Área queimada | V35: 184 | W35: % da área total
B37: Corretivos | K37: Corretivos | T37: Corretivos
C38: Calcário calcítico | D38: 0 | E38: kg/t cana | L38: Calcário calcítico | M38: 0 | N38: kg/t cana | U38: Calcário calcítico | V38: 0 | W38: kg/t cana
C39: Calcário dolomítico | D39: 5.79 | E39: kg/t cana | L39: Calcário dolomítico | M39: 8.106 | N39: kg/t cana | U39: Calcário dolomítico | V39: 5.79 | W39: kg/t cana
C40: Gesso | D40: 2.79 | E40: kg/t cana | L40: Gesso | M40: 3.906 | N40: kg/t cana | U40: Gesso | V40: 2.79 | W40: kg/t cana
B42: Fertilizantes Sintéticos | K42: Fertilizantes Sintéticos | T42: Fertilizantes Sintéticos
C43: Ureia | D43: 1.107 | E43: kg N/t cana | L43: Ureia | M43: 1.5498 | N43: kg N/TC | U43: Ureia | V43: 1.107 | W43: kg N/TC
C44: Fosfato monoamônico (MAP) | D44: 0 | E44: kg N/t cana | L44: Fosfato monoamônico (MAP) | M44: 0 | N44: kg N/TC | U44: Fosfato monoamônico (MAP) | V44: 0 | W44: kg N/TC
C45: Fosfato monoamônico (MAP) | D45: 0 | E45: kg P₂O₅/t cana | L45: Fosfato monoamônico (MAP) | M45: 0 | N45: kg P2O5/TC | U45: Fosfato monoamônico (MAP) | V45: 0 | W45: kg P2O5/TC
C46: Fosfato diamônico (DAP) | D46: 0 | E46: kg N/t cana | L46: Fosfato diamônico (DAP) | M46: 0 | N46: kg N/TC | U46: Fosfato diamônico (DAP) | V46: 0 | W46: kg N/TC
C47: Fosfato diamônico (DAP) | D47: 0 | E47: kg P₂O₅/t cana | L47: Fosfato diamônico (DAP) | M47: 0 | N47: kg P2O5/TC | U47: Fosfato diamônico (DAP) | V47: 0 | W47: kg P2O5/TC
C48: Nitrato de amônio | D48: 0 | E48: kg N/t cana | L48: Nitrato de amônio | M48: 0 | N48: kg N/TC | U48: Nitrato de amônio | V48: 0 | W48: kg N/TC
C49: Solução de nitrato de amônio e ureia (UAN) | D49: 0 | E49: kg N/t cana | L49: Solução de nitrato de amônio e ureia (UAN) | M49: 0 | N49: kg N/TC | U49: Solução de nitrato de amônio e ureia (UAN) | V49: 0 | W49: kg N/TC
C50: Amônia anidra | D50: 0 | E50: kg N/t cana | L50: Amônia anidra | M50: 0 | N50: kg N/TC | U50: Amônia anidra | V50: 0 | W50: kg N/TC
C51: Sulfato de amônio | D51: 0 | E51: kg N/t cana | L51: Sulfato de amônio | M51: 0 | N51: kg N/TC | U51: Sulfato de amônio | V51: 0 | W51: kg N/TC
C52: Nitrato de amônio e cálcio (CAN) | D52: 0 | E52: kg N/t cana | L52: Nitrato de amônio e cálcio (CAN) | M52: 0 | N52: kg N/TC | U52: Nitrato de amônio e cálcio (CAN) | V52: 0 | W52: kg N/TC
C53: Superfosfato simples (SSP) | D53: 0.4438988334 | E53: kg P₂O₅/t cana | L53: Superfosfato simples (SSP) | M53: 0.6214583667 | N53: kg P2O5/TC | U53: Superfosfato simples (SSP) | V53: 0.4438988334 | W53: kg P2O5/TC
C54: Superfosfato triplo (TSP) | D54: 0 | E54: kg P₂O₅/t cana | L54: Superfosfato triplo (TSP) | M54: 0 | N54: kg P2O5/TC | U54: Superfosfato triplo (TSP) | V54: 0 | W54: kg P2O5/TC
C55: Cloreto de potássio (KCl) | D55: 1.346204902 | E55: kg K₂O/t cana | L55: Cloreto de potássio (KCl) | M55: 1.884686862 | N55: kg K2O/TC | U55: Cloreto de potássio (KCl) | V55: 1.346204902 | W55: kg K2O/TC
B56: Outros | C56: especificar | D56: 0 | E56: kg N/t cana | K56: Outros | L56: especificar | M56: 0 | N56: kg N /TC | T56: Outros | U56: especificar | V56: 0 | W56: kg N /TC
B57: Outros | C57: especificar | D57: 0 | E57: kg P₂O₅/t cana | K57: Outros | L57: especificar | M57: 0 | N57: kg P2O5/TC | T57: Outros | U57: especificar | V57: 0 | W57: kg P2O5/TC
B58: Outros | C58: especificar | D58: 0 | E58: kg K₂O/t cana | K58: Outros | L58: especificar | M58: 0 | N58: kg K2O/TC | T58: Outros | U58: especificar | V58: 0 | W58: kg K2O/TC
B60: Fertilizantes Orgânicos/Organominerais | K60: Fertilizantes Orgânicos/Organominerais | T60: Fertilizantes Orgânicos/Organominerais
C61: Vinhaça | D61: 440.2 | E61: L/t cana | F61: Concentração de N | G61: 0.375 | H61: g N/L | L61: Vinhaça | M61: 616.28 | N61: L/t cana | O61: Concentração de N | P61: 0.375 | Q61: g N/L | U61: Vinhaça | V61: 440.2 | W61: L/t cana | X61: Concentração de N | Y61: 0.375 | Z61: g N/L
C62: Torta de Filtro (base úmida) | D62: 30.57142857 | E62: kg/t cana | F62: Concentração de N | G62: 14 | H62: g N/kg | L62: Torta de Filtro (base úmida) | M62: 42.8 | N62: kg/t cana | O62: Concentração de N | P62: 14 | Q62: g N/kg | U62: Torta de Filtro (base úmida) | V62: 30.57142857 | W62: kg/t cana | X62: Concentração de N | Y62: 14 | Z62: g N/kg
C63: Cinzas e fuligem (base úmida) | D63: 7.2 | E63: kg/t cana | F63: Concentração de N | H63: g N/kg | L63: Cinzas e fuligem (base úmida) | M63: 10.08 | N63: kg/t cana | O63: Concentração de N | Q63: g N/kg | U63: Cinzas e fuligem (base úmida) | V63: 7.2 | W63: kg/t cana | X63: Concentração de N | Z63: g N/kg
B64: Outros | C64: especificar | D64: 0 | E64: kg/t cana | F64: Concentração de N | H64: g N/kg | K64: Outros | L64: especificar | M64: 0 | N64: kg/t cana | O64: Concentração de N | Q64: g N/kg | T64: Outros | U64: especificar | V64: 0 | W64: kg/t cana | X64: Concentração de N | Z64: g N/kg
B65: Outros | C65: especificar | D65: 0 | E65: kg/t cana | F65: Concentração de N | H65: g N/kg | K65: Outros | L65: especificar | M65: 0 | N65: kg/t cana | O65: Concentração de N | Q65: g N/kg | T65: Outros | U65: especificar | V65: 0 | W65: kg/t cana | X65: Concentração de N | Z65: g N/kg
B67: Combustíveis e eletricidade da rede | K67: Combustíveis e eletricidade da rede | T67: Combustíveis e eletricidade da rede
C68: Diesel - B8 | D68: 3.18 | E68: L/t cana | L68: Diesel - B8 | M68: 4.452 | N68: L/t cana | U68: Diesel - B8 | V68: 3.18 | W68: L/t cana
C69: Diesel - B10 | D69: 0 | E69: L/t cana | L69: Diesel - B10 | M69: 0 | N69: L/t cana | U69: Diesel - B10 | V69: 0 | W69: L/t cana
C70: Diesel - BX | D70: 0 | E70: L/t cana | F70: Teor de biodiesel na mistura | G70: 0.11 | L70: Diesel - BX | M70: 0 | N70: L/t cana | O70: Teor médio de biodiesel na mistura | P70: 0.11 | Q70: % | U70: Diesel - BX | V70: 0 | W70: L/t cana | X70: Teor médio de biodiesel na mistura | Y70: 0.11 | Z70: %
C71: Diesel - B20 | D71: 0 | E71: L/t cana | L71: Diesel - B20 | M71: 0 | N71: L/t cana | U71: Diesel - B20 | V71: 0 | W71: L/t cana
C72: Diesel - B30 | D72: 0 | E72: L/t cana | L72: Diesel - B30 | M72: 0 | N72: L/t cana | U72: Diesel - B30 | V72: 0 | W72: L/t cana
C73: Biodiesel - B100 | D73: 0 | E73: L/t cana | L73: Biodiesel - B100 | M73: 0 | N73: L/t cana | U73: Biodiesel - B100 | V73: 0 | W73: L/t cana
C74: Gasolina C | D74: 0 | E74: L/t cana | L74: Gasolina C | M74: 0 | N74: L/t cana | U74: Gasolina C | V74: 0 | W74: L/t cana
C75: Etanol hidratado | D75: 0 | E75: L/t cana | L75: Etanol hidratado | M75: 0 | N75: L/t cana | U75: Etanol hidratado | V75: 0 | W75: L/t cana
C76: Biometano de terceiros | D76: 0 | E76: Nm³/t cana | L76: Biometano de terceiros | M76: 0 | N76: Nm³/t cana | U76: Biometano de terceiros | V76: 0 | W76: Nm³/t cana
C77: Biometano próprio | D77: 0 | E77: Nm³/t cana | L77: Biometano próprio | M77: 0 | N77: Nm³/t cana | U77: Biometano próprio | V77: 0 | W77: Nm³/t cana
C78: Eletricidade da rede - mix médio | D78: 0 | E78: kWh/t cana | L78: Eletricidade da rede - mix médio | M78: 0 | N78: kWh/t cana | U78: Eletricidade da rede - mix médio | V78: 0 | W78: kWh/t cana
C79: Eletricidade - PCH | D79: 0 | E79: kWh/t cana | L79: Eletricidade - PCH | M79: 0 | N79: kWh/t cana | U79: Eletricidade - PCH | V79: 0 | W79: kWh/t cana
C80: Eletricidade - biomassa | D80: 0 | E80: kWh/t cana | L80: Eletricidade - biomassa | M80: 0 | N80: kWh/t cana | U80: Eletricidade - biomassa | V80: 0 | W80: kWh/t cana
C81: Eletricidade - eólica | D81: 0 | E81: kWh/t cana | L81: Eletricidade - eólica | M81: 0 | N81: kWh/t cana | U81: Eletricidade - eólica | V81: 0 | W81: kWh/t cana
C82: Eletricidade - solar | D82: 0 | E82: kWh/t cana | L82: Eletricidade - solar | M82: 0 | N82: kWh/t cana | U82: Eletricidade - solar | V82: 0 | W82: kWh/t cana

Sheet F2
B2: Fornecedor de Cana-de-Açúcar
B4: Identificação do fornecedor: | C4: Fornecedor Hipotético 2
B6: CNPJ/CPF: | C6: 00.000.000/0000-00
B8: Responsável pelo preenchimento: | C8: GT ACV RenovaCalc
B10: Telefone : | C10: (00) 0000-0000
B13: Fornecedor | K13: Default - Cana | T13: Guarda dados de preenchimento
B14: Informações gerais | K14: Informações gerais | T14: Informações gerais
B15: Houve supressão de vegetação nativa a partir de 26 de dezembro de 2017? | D15: Não
C16: Usina atende ao ZAE Cana? | D16: Sim
C18: Número de registro no CAR (ou número de protocolo) | D18: UF-1302405-E6D3.395B.6D27.4F42.AE22.DD56.987C.DD52
C20: Situação do CAR | D20: Ativo
C22: Sistema de plantio | D22: Convencional
C23: Área total | D23: 1000 | E23: ha
C25: Produção total colhida para moagem | D25: 66735.2001 | E25: t cana
C26: Teor de impurezas vegetais (base úmida) | D26: 50 | E26: kg/t cana | F26: Umidade | G26: 0.5
C27: Teor de impurezas minerais | D27: 20 | E27: kg/t cana
C28: Palha recolhida (base seca) | D28: 0 | E28: t palha
B30: Tipo de preenchimento | K30: Tipo de preenchimento | T30: Tipo de preenchimento
B31: Tipo de dados forneceidos pelo fornecedor: | M31: Padrão | V31: Primários
B32: =V31 -> Primários
B34: Área Queimada | K34: Área Queimada | T34: Área Queimada
C35: Área queimada | D35: 184 | E35: ha | L35: Área queimada | M35: 1 | N35: % da área total | U35: Área queimada | V35: 184 | W35: % da área total
B37: Corretivos | K37: Corretivos | T37: Corretivos
C38: Calcário calcítico | D38: 0 | E38: kg/t cana | L38: Calcário calcítico | M38: 0 | N38: kg/t cana | U38: Calcário calcítico | V38: 0 | W38: kg/t cana
C39: Calcário dolomítico | D39: 5.79 | E39: kg/t cana | L39: Calcário dolomítico | M39: 8.106 | N39: kg/t cana | U39: Calcário dolomítico | V39: 5.79 | W39: kg/t cana
C40: Gesso | D40: 2.79 | E40: kg/t cana | L40: Gesso | M40: 3.906 | N40: kg/t cana | U40: Gesso | V40: 2.79 | W40: kg/t cana
B42: Fertilizantes Sintéticos | K42: Fertilizantes Sintéticos | T42: Fertilizantes Sintéticos
C43: Ureia | D43: 1.107 | E43: kg N/t cana | L43: Ureia | M43: 1.5498 | N43: kg N/TC | U43: Ureia | V43: 1.107 | W43: kg N/TC
C44: Fosfato monoamônico (MAP) | D44: 0 | E44: kg N/t cana | L44: Fosfato monoamônico (MAP) | M44: 0 | N44: kg N/TC | U44: Fosfato monoamônico (MAP) | V44: 0 | W44: kg N/TC
C45: Fosfato monoamônico (MAP) | D45: 0 | E45: kg P₂O₅/t cana | L45: Fosfato monoamônico (MAP) | M45: 0 | N45: kg P2O5/TC | U45: Fosfato monoamônico (MAP) | V45: 0 | W45: kg P2O5/TC
C46: Fosfato diamônico (DAP) | D46: 0 | E46: kg N/t cana | L46: Fosfato diamônico (DAP) | M46: 0 | N46: kg N/TC | U46: Fosfato diamônico (DAP) | V46: 0 | W46: kg N/TC
C47: Fosfato diamônico (DAP) | D47: 0 | E47: kg P₂O₅/t cana | L47: Fosfato diamônico (DAP) | M47: 0 | N47: kg P2O5/TC | U47: Fosfato diamônico (DAP) | V47: 0 | W47: kg P2O5/TC
C48: Nitrato de amônio | D48: 0 | E48: kg N/t cana | L48: Nitrato de amônio | M48: 0 | N48: kg N/TC | U48: Nitrato de amônio | V48: 0 | W48: kg N/TC
C49: Solução de nitrato de amônio e ureia (UAN) | D49: 0 | E49: kg N/t cana | L49: Solução de nitrato de amônio e ureia (UAN) | M49: 0 | N49: kg N/TC | U49: Solução de nitrato de amônio e ureia (UAN) | V49: 0 | W49: kg N/TC
C50: Amônia anidra | D50: 0 | E50: kg N/t cana | L50: Amônia anidra | M50: 0 | N50: kg N/TC | U50: Amônia anidra | V50: 0 | W50: kg N/TC
C51: Sulfato de amônio | D51: 0 | E51: kg N/t cana | L51: Sulfato de amônio | M51: 0 | N51: kg N/TC | U51: Sulfato de amônio | V51: 0 | W51: kg N/TC
C52: Nitrato de amônio e cálcio (CAN) | D52: 0 | E52: kg N/t cana | L52: Nitrato de amônio e cálcio (CAN) | M52: 0 | N52: kg N/TC | U52: Nitrato de amônio e cálcio (CAN) | V52: 0 | W52: kg N/TC
C53: Superfosfato simples (SSP) | D53: 0.4438988334 | E53: kg P₂O₅/t cana | L53: Superfosfato simples (SSP) | M53: 0.6214583667 | N53: kg P2O5/TC | U53: Superfosfato simples (SSP) | V53: 0.4438988334 | W53: kg P2O5/TC
C54: Superfosfato triplo (TSP) | D54: 0 | E54: kg P₂O₅/t cana | L54: Superfosfato triplo (TSP) | M54: 0 | N54: kg P2O5/TC | U54: Superfosfato triplo (TSP) | V54: 0 | W54: kg P2O5/TC
C55: Cloreto de potássio (KCl) | D55: 1.346204902 | E55: kg K₂O/t cana | L55: Cloreto de potássio (KCl) | M55: 1.884686862 | N55: kg K2O/TC | U55: Cloreto de potássio (KCl) | V55: 1.346204902 | W55: kg K2O/TC
B56: Outros | C56: especificar | D56: 0 | E56: kg N/t cana | K56: Outros | L56: especificar | M56: 0 | N56: kg N /TC | T56: Outros | U56: especificar | V56: 0 | W56: kg N /TC
B57: Outros | C57: especificar | D57: 0 | E57: kg P₂O₅/t cana | K57: Outros | L57: especificar | M57: 0 | N57: kg P2O5/TC | T57: Outros | U57: especificar | V57: 0 | W57: kg P2O5/TC
B58: Outros | C58: especificar | D58: 0 | E58: kg K₂O/t cana | K58: Outros | L58: especificar | M58: 0 | N58: kg K2O/TC | T58: Outros | U58: especificar | V58: 0 | W58: kg K2O/TC
B60: Fertilizantes Orgânicos/Organominerais | K60: Fertilizantes Orgânicos/Organominerais | T60: Fertilizantes Orgânicos/Organominerais
C61: Vinhaça | D61: 440.2 | E61: L/t cana | F61: Concentração de N | G61: 0.375 | H61: g N/L | L61: Vinhaça | M61: 616.28 | N61: L/t cana | O61: Concentração de N | P61: 0.375 | Q61: g N/L | U61: Vinhaça | V61: 440.2 | W61: L/t cana | X61: Concentração de N | Y61: 0.375 | Z61: g N/L
C62: Torta de Filtro (base úmida) | D62: 30.57142857 | E62: kg/t cana | F62: Concentração de N | G62: 14 | H62: g N/kg | L62: Torta de Filtro (base úmida) | M62: 42.8 | N62: kg/t cana | O62: Concentração de N | P62: 14 | Q62: g N/kg | U62: Torta de Filtro (base úmida) | V62: 30.57142857 | W62: kg/t cana | X62: Concentração de N | Y62: 14 | Z62: g N/kg
C63: Cinzas e fuligem (base úmida) | D63: 7.2 | E63: kg/t cana | F63: Concentração de N | H63: g N/kg | L63: Cinzas e fuligem (base úmida) | M63: 10.08 | N63: kg/t cana | O63: Concentração de N | Q63: g N/kg | U63: Cinzas e fuligem (base úmida) | V63: 7.2 | W63: kg/t cana | X63: Concentração de N | Z63: g N/kg
B64: Outros | C64: especificar | D64: 0 | E64: kg/t cana | F64: Concentração de N | H64: g N/kg | K64: Outros | L64: especificar | M64: 0 | N64: kg/t cana | O64: Concentração de N | Q64: g N/kg | T64: Outros | U64: especificar | V64: 0 | W64: kg/t cana | X64: Concentração de N | Z64: g N/kg
B65: Outros | C65: especificar | D65: 0 | E65: kg/t cana | F65: Concentração de N | H65: g N/kg | K65: Outros | L65: especificar | M65: 0 | N65: kg/t cana | O65: Concentração de N | Q65: g N/kg | T65: Outros | U65: especificar | V65: 0 | W65: kg/t cana | X65: Concentração de N | Z65: g N/kg
B67: Combustíveis e eletricidade da rede | K67: Combustíveis e eletricidade da rede | T67: Combustíveis e eletricidade da rede
C68: Diesel - B8 | D68: 3.18 | E68: L/t cana | L68: Diesel - B8 | M68: 4.452 | N68: L/t cana | U68: Diesel - B8 | V68: 3.18 | W68: L/t cana
C69: Diesel - B10 | D69: 0 | E69: L/t cana | L69: Diesel - B10 | M69: 0 | N69: L/t cana | U69: Diesel - B10 | V69: 0 | W69: L/t cana
C70: Diesel - BX | D70: 0 | E70: L/t cana | F70: Teor de biodiesel na mistura | G70: 0.11 | L70: Diesel - BX | M70: 0 | N70: L/t cana | O70: Teor médio de biodiesel na mistura | P70: 0.11 | Q70: % | U70: Diesel - BX | V70: 0 | W70: L/t cana | X70: Teor médio de biodiesel na mistura | Y70: 0.11 | Z70: %
C71: Diesel - B20 | D71: 0 | E71: L/t cana | L71: Diesel - B20 | M71: 0 | N71: L/t cana | U71: Diesel - B20 | V71: 0 | W71: L/t cana
C72: Diesel - B30 | D72: 0 | E72: L/t cana | L72: Diesel - B30 | M72: 0 | N72: L/t cana | U72: Diesel - B30 | V72: 0 | W72: L/t cana
C73: Biodiesel - B100 | D73: 0 | E73: L/t cana | L73: Biodiesel - B100 | M73: 0 | N73: L/t cana | U73: Biodiesel - B100 | V73: 0 | W73: L/t cana
C74: Gasolina C | D74: 0 | E74: L/t cana | L74: Gasolina C | M74: 0 | N74: L/t cana | U74: Gasolina C | V74: 0 | W74: L/t cana
C75: Etanol hidratado | D75: 0 | E75: L/t cana | L75: Etanol hidratado | M75: 0 | N75: L/t cana | U75: Etanol hidratado | V75: 0 | W75: L/t cana
C76: Biometano de terceiros | D76: 0 | E76: Nm³/t cana | L76: Biometano de terceiros | M76: 0 | N76: Nm³/t cana | U76: Biometano de terceiros | V76: 0 | W76: Nm³/t cana
C77: Biometano próprio | D77: 0 | E77: Nm³/t cana | L77: Biometano próprio | M77: 0 | N77: Nm³/t cana | U77: Biometano próprio | V77: 0 | W77: Nm³/t cana
C78: Eletricidade da rede - mix médio | D78: 0 | E78: kWh/t cana | L78: Eletricidade da rede - mix médio | M78: 0 | N78: kWh/t cana | U78: Eletricidade da rede - mix médio | V78: 0 | W78: kWh/t cana
C79: Eletricidade - PCH | D79: 0 | E79: kWh/t cana | L79: Eletricidade - PCH | M79: 0 | N79: kWh/t cana | U79: Eletricidade - PCH | V79: 0 | W79: kWh/t cana
C80: Eletricidade - biomassa | D80: 0 | E80: kWh/t cana | L80: Eletricidade - biomassa | M80: 0 | N80: kWh/t cana | U80: Eletricidade - biomassa | V80: 0 | W80: kWh/t cana
C81: Eletricidade - eólica | D81: 0 | E81: kWh/t cana | L81: Eletricidade - eólica | M81: 0 | N81: kWh/t cana | U81: Eletricidade - eólica | V81: 0 | W81: kWh/t cana
C82: Eletricidade - solar | D82: 0 | E82: kWh/t cana | L82: Eletricidade - solar | M82: 0 | N82: kWh/t cana | U82: Eletricidade - solar | V82: 0 | W82: kWh/t cana

Sheet F3
B2: Fornecedor de Cana-de-Açúcar
B4: Identificação do fornecedor: | C4: Fornecedor Hipotético 3
B6: CNPJ/CPF: | C6: 00.000.000/0000-00
B8: Responsável pelo preenchimento: | C8: GT ACV RenovaCalc
B10: Telefone : | C10: (00) 0000-0000
B13: Fornecedor | K13: Default - Cana | T13: Guarda dados de preenchimento
B14: Informações gerais | K14: Informações gerais | T14: Informações gerais
B15: Houve supressão de vegetação nativa a partir de 26 de dezembro de 2017? | D15: Não
C16: Usina atende ao ZAE Cana? | D16: Sim
C18: Número de registro no CAR (ou número de protocolo) | D18: UF-1302405-E6D3.395B.6D27.4F42.AE22.DD56.987C.DD53
C20: Situação do CAR | D20: Ativo
C22: Sistema de plantio | D22: Convencional
C23: Área total | D23: 1000 | E23: ha
C25: Produção total colhida para moagem | D25: 66735.2001 | E25: t cana
C26: Teor de impurezas vegetais (base úmida) | D26: 50 | E26: kg/t cana | F26: Umidade | G26: 0.5
C27: Teor de impurezas minerais | D27: 20 | E27: kg/t cana
C28: Palha recolhida (base seca) | D28: 0 | E28: t palha
B30: Tipo de preenchimento | K30: Tipo de preenchimento | T30: Tipo de preenchimento
B31: Tipo de dados forneceidos pelo fornecedor: | M31: Padrão | V31: Primários
B32: =V31 -> Primários
B34: Área Queimada | K34: Área Queimada | T34: Área Queimada
C35: Área queimada | D35: 184 | E35: ha | L35: Área queimada | M35: 1 | N35: % da área total | U35: Área queimada | V35: 184 | W35: % da área total
B37: Corretivos | K37: Corretivos | T37: Corretivos
C38: Calcário calcítico | D38: 0 | E38: kg/t cana | L38: Calcário calcítico | M38: 0 | N38: kg/t cana | U38: Calcário calcítico | V38: 0 | W38: kg/t cana
C39: Calcário dolomítico | D39: 5.79 | E39: kg/t cana | L39: Calcário dolomítico | M39: 8.106 | N39: kg/t cana | U39: Calcário dolomítico | V39: 5.79 | W39: kg/t cana
C40: Gesso | D40: 2.79 | E40: kg/t cana | L40: Gesso | M40: 3.906 | N40: kg/t cana | U40: Gesso | V40: 2.79 | W40: kg/t cana
B42: Fertilizantes Sintéticos | K42: Fertilizantes Sintéticos | T42: Fertilizantes Sintéticos
C43: Ureia | D43: 1.107 | E43: kg N/t cana | L43: Ureia | M43: 1.5498 | N43: kg N/TC | U43: Ureia | V43: 1.107 | W43: kg N/TC
C44: Fosfato monoamônico (MAP) | D44: 0 | E44: kg N/t cana | L44: Fosfato monoamônico (MAP) | M44: 0 | N44: kg N/TC | U44: Fosfato monoamônico (MAP) | V44: 0 | W44: kg N/TC
C45: Fosfato monoamônico (MAP) | D45: 0 | E45: kg P₂O₅/t cana | L45: Fosfato monoamônico (MAP) | M45: 0 | N45: kg P2O5/TC | U45: Fosfato monoamônico (MAP) | V45: 0 | W45: kg P2O5/TC
C46: Fosfato diamônico (DAP) | D46: 0 | E46: kg N/t cana | L46: Fosfato diamônico (DAP) | M46: 0 | N46: kg N/TC | U46: Fosfato diamônico (DAP) | V46: 0 | W46: kg N/TC
C47: Fosfato diamônico (DAP) | D47: 0 | E47: kg P₂O₅/t cana | L47: Fosfato diamônico (DAP) | M47: 0 | N47: kg P2O5/TC | U47: Fosfato diamônico (DAP) | V47: 0 | W47: kg P2O5/TC
C48: Nitrato de amônio | D48: 0 | E48: kg N/t cana | L48: Nitrato de amônio | M48: 0 | N48: kg N/TC | U48: Nitrato de amônio | V48: 0 | W48: kg N/TC
C49: Solução de nitrato de amônio e ureia (UAN) | D49: 0 | E49: kg N/t cana | L49: Solução de nitrato de amônio e ureia (UAN) | M49: 0 | N49: kg N/TC | U49: Solução de nitrato de amônio e ureia (UAN) | V49: 0 | W49: kg N/TC
C50: Amônia anidra | D50: 0 | E50: kg N/t cana | L50: Amônia anidra | M50: 0 | N50: kg N/TC | U50: Amônia anidra | V50: 0 | W50: kg N/TC
C51: Sulfato de amônio | D51: 0 | E51: kg N/t cana | L51: Sulfato de amônio | M51: 0 | N51: kg N/TC | U51: Sulfato de amônio | V51: 0 | W51: kg N/TC
C52: Nitrato de amônio e cálcio (CAN) | D52: 0 | E52: kg N/t cana | L52: Nitrato de amônio e cálcio (CAN) | M52: 0 | N52: kg N/TC | U52: Nitrato de amônio e cálcio (CAN) | V52: 0 | W52: kg N/TC
C53: Superfosfato simples (SSP) | D53: 0.4438988334 | E53: kg P₂O₅/t cana | L53: Superfosfato simples (SSP) | M53: 0.6214583667 | N53: kg P2O5/TC | U53: Superfosfato simples (SSP) | V53: 0.4438988334 | W53: kg P2O5/TC
C54: Superfosfato triplo (TSP) | D54: 0 | E54: kg P₂O₅/t cana | L54: Superfosfato triplo (TSP) | M54: 0 | N54: kg P2O5/TC | U54: Superfosfato triplo (TSP) | V54: 0 | W54: kg P2O5/TC
C55: Cloreto de potássio (KCl) | D55: 1.346204902 | E55: kg K₂O/t cana | L55: Cloreto de potássio (KCl) | M55: 1.884686862 | N55: kg K2O/TC | U55: Cloreto de potássio (KCl) | V55: 1.346204902 | W55: kg K2O/TC
B56: Outros | C56: especificar | D56: 0 | E56: kg N/t cana | K56: Outros | L56: especificar | M56: 0 | N56: kg N /TC | T56: Outros | U56: especificar | V56: 0 | W56: kg N /TC
B57: Outros | C57: especificar | D57: 0 | E57: kg P₂O₅/t cana | K57: Outros | L57: especificar | M57: 0 | N57: kg P2O5/TC | T57: Outros | U57: especificar | V57: 0 | W57: kg P2O5/TC
B58: Outros | C58: especificar | D58: 0 | E58: kg K₂O/t cana | K58: Outros | L58: especificar | M58: 0 | N58: kg K2O/TC | T58: Outros | U58: especificar | V58: 0 | W58: kg K2O/TC
B60: Fertilizantes Orgânicos/Organominerais | K60: Fertilizantes Orgânicos/Organominerais | T60: Fertilizantes Orgânicos/Organominerais
C61: Vinhaça | D61: 440.2 | E61: L/t cana | F61: Concentração de N | G61: 0.375 | H61: g N/L | L61: Vinhaça | M61: 616.28 | N61: L/t cana | O61: Concentração de N | P61: 0.375 | Q61: g N/L | U61: Vinhaça | V61: 440.2 | W61: L/t cana | X61: Concentração de N | Y61: 0.375 | Z61: g N/L
C62: Torta de Filtro (base úmida) | D62: 30.57142857 | E62: kg/t cana | F62: Concentração de N | G62: 14 | H62: g N/kg | L62: Torta de Filtro (base úmida) | M62: 42.8 | N62: kg/t cana | O62: Concentração de N | P62: 14 | Q62: g N/kg | U62: Torta de Filtro (base úmida) | V62: 30.57142857 | W62: kg/t cana | X62: Concentração de N | Y62: 14 | Z62: g N/kg
C63: Cinzas e fuligem (base úmida) | D63: 7.2 | E63: kg/t cana | F63: Concentração de N | H63: g N/kg | L63: Cinzas e fuligem (base úmida) | M63: 10.08 | N63: kg/t cana | O63: Concentração de N | Q63: g N/kg | U63: Cinzas e fuligem (base úmida) | V63: 7.2 | W63: kg/t cana | X63: Concentração de N | Z63: g N/kg
B64: Outros | C64: especificar | D64: 0 | E64: kg/t cana | F64: Concentração de N | H64: g N/kg | K64: Outros | L64: especificar | M64: 0 | N64: kg/t cana | O64: Concentração de N | Q64: g N/kg | T64: Outros | U64: especificar | V64: 0 | W64: kg/t cana | X64: Concentração de N | Z64: g N/kg
B65: Outros | C65: especificar | D65: 0 | E65: kg/t cana | F65: Concentração de N | H65: g N/kg | K65: Outros | L65: especificar | M65: 0 | N65: kg/t cana | O65: Concentração de N | Q65: g N/kg | T65: Outros | U65: especificar | V65: 0 | W65: kg/t cana | X65: Concentração de N | Z65: g N/kg
B67: Combustíveis e eletricidade da rede | K67: Combustíveis e eletricidade da rede | T67: Combustíveis e eletricidade da rede
C68: Diesel - B8 | D68: 3.18 | E68: L/t cana | L68: Diesel - B8 | M68: 4.452 | N68: L/t cana | U68: Diesel - B8 | V68: 3.18 | W68: L/t cana
C69: Diesel - B10 | D69: 0 | E69: L/t cana | L69: Diesel - B10 | M69: 0 | N69: L/t cana | U69: Diesel - B10 | V69: 0 | W69: L/t cana
C70: Diesel - BX | D70: 0 | E70: L/t cana | F70: Teor de biodiesel na mistura | G70: 0.11 | L70: Diesel - BX | M70: 0 | N70: L/t cana | O70: Teor médio de biodiesel na mistura | P70: 0.11 | Q70: % | U70: Diesel - BX | V70: 0 | W70: L/t cana | X70: Teor médio de biodiesel na mistura | Y70: 0.11 | Z70: %
C71: Diesel - B20 | D71: 0 | E71: L/t cana | L71: Diesel - B20 | M71: 0 | N71: L/t cana | U71: Diesel - B20 | V71: 0 | W71: L/t cana
C72: Diesel - B30 | D72: 0 | E72: L/t cana | L72: Diesel - B30 | M72: 0 | N72: L/t cana | U72: Diesel - B30 | V72: 0 | W72: L/t cana
C73: Biodiesel - B100 | D73: 0 | E73: L/t cana | L73: Biodiesel - B100 | M73: 0 | N73: L/t cana | U73: Biodiesel - B100 | V73: 0 | W73: L/t cana
C74: Gasolina C | D74: 0 | E74: L/t cana | L74: Gasolina C | M74: 0 | N74: L/t cana | U74: Gasolina C | V74: 0 | W74: L/t cana
C75: Etanol hidratado | D75: 0 | E75: L/t cana | L75: Etanol hidratado | M75: 0 | N75: L/t cana | U75: Etanol hidratado | V75: 0 | W75: L/t cana
C76: Biometano de terceiros | D76: 0 | E76: Nm³/t cana | L76: Biometano de terceiros | M76: 0 | N76: Nm³/t cana | U76: Biometano de terceiros | V76: 0 | W76: Nm³/t cana
C77: Biometano próprio | D77: 0 | E77: Nm³/t cana | L77: Biometano próprio | M77: 0 | N77: Nm³/t cana | U77: Biometano próprio | V77: 0 | W77: Nm³/t cana
C78: Eletricidade da rede - mix médio | D78: 0 | E78: kWh/t cana | L78: Eletricidade da rede - mix médio | M78: 0 | N78: kWh/t cana | U78: Eletricidade da rede - mix médio | V78: 0 | W78: kWh/t cana
C79: Eletricidade - PCH | D79: 0 | E79: kWh/t cana | L79: Eletricidade - PCH | M79: 0 | N79: kWh/t cana | U79: Eletricidade - PCH | V79: 0 | W79: kWh/t cana
C80: Eletricidade - biomassa | D80: 0 | E80: kWh/t cana | L80: Eletricidade - biomassa | M80: 0 | N80: kWh/t cana | U80: Eletricidade - biomassa | V80: 0 | W80: kWh/t cana
C81: Eletricidade - eólica | D81: 0 | E81: kWh/t cana | L81: Eletricidade - eólica | M81: 0 | N81: kWh/t cana | U81: Eletricidade - eólica | V81: 0 | W81: kWh/t cana
C82: Eletricidade - solar | D82: 0 | E82: kWh/t cana | L82: Eletricidade - solar | M82: 0 | N82: kWh/t cana | U82: Eletricidade - solar | V82: 0 | W82: kWh/t cana

Sheet F4
B2: Fornecedor de Cana-de-Açúcar
B4: Identificação do fornecedor: | C4: Fornecedor Hipotético 4
B6: CNPJ/CPF: | C6: 00.000.000/0000-00
B8: Responsável pelo preenchimento: | C8: GT ACV RenovaCalc
B10: Telefone : | C10: (00) 0000-0000
B13: Fornecedor | K13: Default - Cana | T13: Guarda dados de preenchimento
B14: Informações gerais | K14: Informações gerais | T14: Informações gerais
B15: Houve supressão de vegetação nativa a partir de 26 de dezembro de 2017? | D15: Não
C16: Usina atende ao ZAE Cana? | D16: Sim
C18: Número de registro no CAR (ou número de protocolo) | D18: UF-1302405-E6D3.395B.6D27.4F42.AE22.DD56.987C.DD54
C20: Situação do CAR | D20: Ativo
C22: Sistema de plantio | D22: Convencional
C23: Área total | D23: 1000 | E23: ha
C25: Produção total colhida para moagem | D25: 66735.2001 | E25: t cana
C26: Teor de impurezas vegetais (base úmida) | D26: 50 | E26: kg/t cana | F26: Umidade | G26: 0.5
C27: Teor de impurezas minerais | D27: 20 | E27: kg/t cana
C28: Palha recolhida (base seca) | D28: 0 | E28: t palha
B30: Tipo de preenchimento | K30: Tipo de preenchimento | T30: Tipo de preenchimento
B31: Tipo de dados forneceidos pelo fornecedor: | M31: Padrão | V31: Primários
B32: =V31 -> Primários
B34: Área Queimada | K34: Área Queimada | T34: Área Queimada
C35: Área queimada | D35: 184 | E35: ha | L35: Área queimada | M35: 1 | N35: % da área total | U35: Área queimada | V35: 184 | W35: % da área total
B37: Corretivos | K37: Corretivos | T37: Corretivos
C38: Calcário calcítico | D38: 0 | E38: kg/t cana | L38: Calcário calcítico | M38: 0 | N38: kg/t cana | U38: Calcário calcítico | V38: 0 | W38: kg/t cana
C39: Calcário dolomítico | D39: 5.79 | E39: kg/t cana | L39: Calcário dolomítico | M39: 8.106 | N39: kg/t cana | U39: Calcário dolomítico | V39: 5.79 | W39: kg/t cana
C40: Gesso | D40: 2.79 | E40: kg/t cana | L40: Gesso | M40: 3.906 | N40: kg/t cana | U40: Gesso | V40: 2.79 | W40: kg/t cana
B42: Fertilizantes Sintéticos | K42: Fertilizantes Sintéticos | T42: Fertilizantes Sintéticos
C43: Ureia | D43: 1.107 | E43: kg N/t cana | L43: Ureia | M43: 1.5498 | N43: kg N/TC | U43: Ureia | V43: 1.107 | W43: kg N/TC
C44: Fosfato monoamônico (MAP) | D44: 0 | E44: kg N/t cana | L44: Fosfato monoamônico (MAP) | M44: 0 | N44: kg N/TC | U44: Fosfato monoamônico (MAP) | V44: 0 | W44: kg N/TC
C45: Fosfato monoamônico (MAP) | D45: 0 | E45: kg P₂O₅/t cana | L45: Fosfato monoamônico (MAP) | M45: 0 | N45: kg P2O5/TC | U45: Fosfato monoamônico (MAP) | V45: 0 | W45: kg P2O5/TC
C46: Fosfato diamônico (DAP) | D46: 0 | E46: kg N/t cana | L46: Fosfato diamônico (DAP) | M46: 0 | N46: kg N/TC | U46: Fosfato diamônico (DAP) | V46: 0 | W46: kg N/TC
C47: Fosfato diamônico (DAP) | D47: 0 | E47: kg P₂O₅/t cana | L47: Fosfato diamônico (DAP) | M47: 0 | N47: kg P2O5/TC | U47: Fosfato diamônico (DAP) | V47: 0 | W47: kg P2O5/TC
C48: Nitrato de amônio | D48: 0 | E48: kg N/t cana | L48: Nitrato de amônio | M48: 0 | N48: kg N/TC | U48: Nitrato de amônio | V48: 0 | W48: kg N/TC
C49: Solução de nitrato de amônio e ureia (UAN) | D49: 0 | E49: kg N/t cana | L49: Solução de nitrato de amônio e ureia (UAN) | M49: 0 | N49: kg N/TC | U49: Solução de nitrato de amônio e ureia (UAN) | V49: 0 | W49: kg N/TC
C50: Amônia anidra | D50: 0 | E50: kg N/t cana | L50: Amônia anidra | M50: 0 | N50: kg N/TC | U50: Amônia anidra | V50: 0 | W50: kg N/TC
C51: Sulfato de amônio | D51: 0 | E51: kg N/t cana | L51: Sulfato de amônio | M51: 0 | N51: kg N/TC | U51: Sulfato de amônio | V51: 0 | W51: kg N/TC
C52: Nitrato de amônio e cálcio (CAN) | D52: 0 | E52: kg N/t cana | L52: Nitrato de amônio e cálcio (CAN) | M52: 0 | N52: kg N/TC | U52: Nitrato de amônio e cálcio (CAN) | V52: 0 | W52: kg N/TC
C53: Superfosfato simples (SSP) | D53: 0.4438988334 | E53: kg P₂O₅/t cana | L53: Superfosfato simples (SSP) | M53: 0.6214583667 | N53: kg P2O5/TC | U53: Superfosfato simples (SSP) | V53: 0.4438988334 | W53: kg P2O5/TC
C54: Superfosfato triplo (TSP) | D54: 0 | E54: kg P₂O₅/t cana | L54: Superfosfato triplo (TSP) | M54: 0 | N54: kg P2O5/TC | U54: Superfosfato triplo (TSP) | V54: 0 | W54: kg P2O5/TC
C55: Cloreto de potássio (KCl) | D55: 1.346204902 | E55: kg K₂O/t cana | L55: Cloreto de potássio (KCl) | M55: 1.884686862 | N55: kg K2O/TC | U55: Cloreto de potássio (KCl) | V55: 1.346204902 | W55: kg K2O/TC
B56: Outros | C56: especificar | D56: 0 | E56: kg N/t cana | K56: Outros | L56: especificar | M56: 0 | N56: kg N /TC | T56: Outros | U56: especificar | V56: 0 | W56: kg N /TC
B57: Outros | C57: especificar | D57: 0 | E57: kg P₂O₅/t cana | K57: Outros | L57: especificar | M57: 0 | N57: kg P2O5/TC | T57: Outros | U57: especificar | V57: 0 | W57: kg P2O5/TC
B58: Outros | C58: especificar | D58: 0 | E58: kg K₂O/t cana | K58: Outros | L58: especificar | M58: 0 | N58: kg K2O/TC | T58: Outros | U58: especificar | V58: 0 | W58: kg K2O/TC
B60: Fertilizantes Orgânicos/Organominerais | K60: Fertilizantes Orgânicos/Organominerais | T60: Fertilizantes Orgânicos/Organominerais
C61: Vinhaça | D61: 440.2 | E61: L/t cana | F61: Concentração de N | G61: 0.375 | H61: g N/L | L61: Vinhaça | M61: 616.28 | N61: L/t cana | O61: Concentração de N | P61: 0.375 | Q61: g N/L | U61: Vinhaça | V61: 440.2 | W61: L/t cana | X61: Concentração de N | Y61: 0.375 | Z61: g N/L
C62: Torta de Filtro (base úmida) | D62: 30.57142857 | E62: kg/t cana | F62: Concentração de N | G62: 14 | H62: g N/kg | L62: Torta de Filtro (base úmida) | M62: 42.8 | N62: kg/t cana | O62: Concentração de N | P62: 14 | Q62: g N/kg | U62: Torta de Filtro (base úmida) | V62: 30.57142857 | W62: kg/t cana | X62: Concentração de N | Y62: 14 | Z62: g N/kg
C63: Cinzas e fuligem (base úmida) | D63: 7.2 | E63: kg/t cana | F63: Concentração de N | H63: g N/kg | L63: Cinzas e fuligem (base úmida) | M63: 10.08 | N63: kg/t cana | O63: Concentração de N | Q63: g N/kg | U63: Cinzas e fuligem (base úmida) | V63: 7.2 | W63: kg/t cana | X63: Concentração de N | Z63: g N/kg
B64: Outros | C64: especificar | D64: 0 | E64: kg/t cana | F64: Concentração de N | H64: g N/kg | K64: Outros | L64: especificar | M64: 0 | N64: kg/t cana | O64: Concentração de N | Q64: g N/kg | T64: Outros | U64: especificar | V64: 0 | W64: kg/t cana | X64: Concentração de N | Z64: g N/kg
B65: Outros | C65: especificar | D65: 0 | E65: kg/t cana | F65: Concentração de N | H65: g N/kg | K65: Outros | L65: especificar | M65: 0 | N65: kg/t cana | O65: Concentração de N | Q65: g N/kg | T65: Outros | U65: especificar | V65: 0 | W65: kg/t cana | X65: Concentração de N | Z65: g N/kg
B67: Combustíveis e eletricidade da rede | K67: Combustíveis e eletricidade da rede | T67: Combustíveis e eletricidade da rede
C68: Diesel - B8 | D68: 3.18 | E68: L/t cana | L68: Diesel - B8 | M68: 4.452 | N68: L/t cana | U68: Diesel - B8 | V68: 3.18 | W68: L/t cana
C69: Diesel - B10 | D69: 0 | E69: L/t cana | L69: Diesel - B10 | M69: 0 | N69: L/t cana | U69: Diesel - B10 | V69: 0 | W69: L/t cana
C70: Diesel - BX | D70: 0 | E70: L/t cana | F70: Teor de biodiesel na mistura | G70: 0.11 | L70: Diesel - BX | M70: 0 | N70: L/t cana | O70: Teor médio de biodiesel na mistura | P70: 0.11 | Q70: % | U70: Diesel - BX | V70: 0 | W70: L/t cana | X70: Teor médio de biodiesel na mistura | Y70: 0.11 | Z70: %
C71: Diesel - B20 | D71: 0 | E71: L/t cana | L71: Diesel - B20 | M71: 0 | N71: L/t cana | U71: Diesel - B20 | V71: 0 | W71: L/t cana
C72: Diesel - B30 | D72: 0 | E72: L/t cana | L72: Diesel - B30 | M72: 0 | N72: L/t cana | U72: Diesel - B30 | V72: 0 | W72: L/t cana
C73: Biodiesel - B100 | D73: 0 | E73: L/t cana | L73: Biodiesel - B100 | M73: 0 | N73: L/t cana | U73: Biodiesel - B100 | V73: 0 | W73: L/t cana
C74: Gasolina C | D74: 0 | E74: L/t cana | L74: Gasolina C | M74: 0 | N74: L/t cana | U74: Gasolina C | V74: 0 | W74: L/t cana
C75: Etanol hidratado | D75: 0 | E75: L/t cana | L75: Etanol hidratado | M75: 0 | N75: L/t cana | U75: Etanol hidratado | V75: 0 | W75: L/t cana
C76: Biometano de terceiros | D76: 0 | E76: Nm³/t cana | L76: Biometano de terceiros | M76: 0 | N76: Nm³/t cana | U76: Biometano de terceiros | V76: 0 | W76: Nm³/t cana
C77: Biometano próprio | D77: 0 | E77: Nm³/t cana | L77: Biometano próprio | M77: 0 | N77: Nm³/t cana | U77: Biometano próprio | V77: 0 | W77: Nm³/t cana
C78: Eletricidade da rede - mix médio | D78: 0 | E78: kWh/t cana | L78: Eletricidade da rede - mix médio | M78: 0 | N78: kWh/t cana | U78: Eletricidade da rede - mix médio | V78: 0 | W78: kWh/t cana
C79: Eletricidade - PCH | D79: 0 | E79: kWh/t cana | L79: Eletricidade - PCH | M79: 0 | N79: kWh/t cana | U79: Eletricidade - PCH | V79: 0 | W79: kWh/t cana
C80: Eletricidade - biomassa | D80: 0 | E80: kWh/t cana | L80: Eletricidade - biomassa | M80: 0 | N80: kWh/t cana | U80: Eletricidade - biomassa | V80: 0 | W80: kWh/t cana
C81: Eletricidade - eólica | D81: 0 | E81: kWh/t cana | L81: Eletricidade - eólica | M81: 0 | N81: kWh/t cana | U81: Eletricidade - eólica | V81: 0 | W81: kWh/t cana
C82: Eletricidade - solar | D82: 0 | E82: kWh/t cana | L82: Eletricidade - solar | M82: 0 | N82: kWh/t cana | U82: Eletricidade - solar | V82: 0 | W82: kWh/t cana

Sheet F5
B2: Fornecedor de Cana-de-Açúcar
B4: Identificação do fornecedor: | C4: Fornecedor Hipotético 5
B6: CNPJ/CPF: | C6: 00.000.000/0000-00
B8: Responsável pelo preenchimento: | C8: GT ACV RenovaCalc
B10: Telefone : | C10: (00) 0000-0000
B13: Fornecedor | K13: Default - Cana | T13: Guarda dados de preenchimento
B14: Informações gerais | K14: Informações gerais | T14: Informações gerais
B15: Houve supressão de vegetação nativa a partir de 26 de dezembro de 2017? | D15: Não
C16: Usina atende ao ZAE Cana? | D16: Sim
C18: Número de registro no CAR (ou número de protocolo) | D18: UF-1302405-E6D3.395B.6D27.4F42.AE22.DD56.987C.DD55
C20: Situação do CAR | D20: Ativo
C22: Sistema de plantio | D22: Convencional
C23: Área total | D23: 1000 | E23: ha
C25: Produção total colhida para moagem | D25: 66735.2001 | E25: t cana
C26: Teor de impurezas vegetais (base úmida) | D26: 50 | E26: kg/t cana | F26: Umidade | G26: 0.5
C27: Teor de impurezas minerais | D27: 20 | E27: kg/t cana
C28: Palha recolhida (base seca) | D28: 0 | E28: t palha
B30: Tipo de preenchimento | K30: Tipo de preenchimento | T30: Tipo de preenchimento
B31: Tipo de dados forneceidos pelo fornecedor: | M31: Padrão | V31: Primários
B32: =V31 -> Primários
B34: Área Queimada | K34: Área Queimada | T34: Área Queimada
C35: Área queimada | D35: 184 | E35: ha | L35: Área queimada | M35: 1 | N35: % da área total | U35: Área queimada | V35: 184 | W35: % da área total
B37: Corretivos | K37: Corretivos | T37: Corretivos
C38: Calcário calcítico | D38: 0 | E38: kg/t cana | L38: Calcário calcítico | M38: 0 | N38: kg/t cana | U38: Calcário calcítico | V38: 0 | W38: kg/t cana
C39: Calcário dolomítico | D39: 5.79 | E39: kg/t cana | L39: Calcário dolomítico | M39: 8.106 | N39: kg/t cana | U39: Calcário dolomítico | V39: 5.79 | W39: kg/t cana
C40: Gesso | D40: 2.79 | E40: kg/t cana | L40: Gesso | M40: 3.906 | N40: kg/t cana | U40: Gesso | V40: 2.79 | W40: kg/t cana
B42: Fertilizantes Sintéticos | K42: Fertilizantes Sintéticos | T42: Fertilizantes Sintéticos
C43: Ureia | D43: 1.107 | E43: kg N/t cana | L43: Ureia | M43: 1.5498 | N43: kg N/TC | U43: Ureia | V43: 1.107 | W43: kg N/TC
C44: Fosfato monoamônico (MAP) | D44: 0 | E44: kg N/t cana | L44: Fosfato monoamônico (MAP) | M44: 0 | N44: kg N/TC | U44: Fosfato monoamônico (MAP) | V44: 0 | W44: kg N/TC
C45: Fosfato monoamônico (MAP) | D45: 0 | E45: kg P₂O₅/t cana | L45: Fosfato monoamônico (MAP) | M45: 0 | N45: kg P2O5/TC | U45: Fosfato monoamônico (MAP) | V45: 0 | W45: kg P2O5/TC
C46: Fosfato diamônico (DAP) | D46: 0 | E46: kg N/t cana | L46: Fosfato diamônico (DAP) | M46: 0 | N46: kg N/TC | U46: Fosfato diamônico (DAP) | V46: 0 | W46: kg N/TC
C47: Fosfato diamônico (DAP) | D47: 0 | E47: kg P₂O₅/t cana | L47: Fosfato diamônico (DAP) | M47: 0 | N47: kg P2O5/TC | U47: Fosfato diamônico (DAP) | V47: 0 | W47: kg P2O5/TC
C48: Nitrato de amônio | D48: 0 | E48: kg N/t cana | L48: Nitrato de amônio | M48: 0 | N48: kg N/TC | U48: Nitrato de amônio | V48: 0 | W48: kg N/TC
C49: Solução de nitrato de amônio e ureia (UAN) | D49: 0 | E49: kg N/t cana | L49: Solução de nitrato de amônio e ureia (UAN) | M49: 0 | N49: kg N/TC | U49: Solução de nitrato de amônio e ureia (UAN) | V49: 0 | W49: kg N/TC
C50: Amônia anidra | D50: 0 | E50: kg N/t cana | L50: Amônia anidra | M50: 0 | N50: kg N/TC | U50: Amônia anidra | V50: 0 | W50: kg N/TC
C51: Sulfato de amônio | D51: 0 | E51: kg N/t cana | L51: Sulfato de amônio | M51: 0 | N51: kg N/TC | U51: Sulfato de amônio | V51: 0 | W51: kg N/TC
C52: Nitrato de amônio e cálcio (CAN) | D52: 0 | E52: kg N/t cana | L52: Nitrato de amônio e cálcio (CAN) | M52: 0 | N52: kg N/TC | U52: Nitrato de amônio e cálcio (CAN) | V52: 0 | W52: kg N/TC
C53: Superfosfato simples (SSP) | D53: 0.4438988334 | E53: kg P₂O₅/t cana | L53: Superfosfato simples (SSP) | M53: 0.6214583667 | N53: kg P2O5/TC | U53: Superfosfato simples (SSP) | V53: 0.4438988334 | W53: kg P2O5/TC
C54: Superfosfato triplo (TSP) | D54: 0 | E54: kg P₂O₅/t cana | L54: Superfosfato triplo (TSP) | M54: 0 | N54: kg P2O5/TC | U54: Superfosfato triplo (TSP) | V54: 0 | W54: kg P2O5/TC
C55: Cloreto de potássio (KCl) | D55: 1.346204902 | E55: kg K₂O/t cana | L55: Cloreto de potássio (KCl) | M55: 1.884686862 | N55: kg K2O/TC | U55: Cloreto de potássio (KCl) | V55: 1.346204902 | W55: kg K2O/TC
B56: Outros | C56: especificar | D56: 0 | E56: kg N/t cana | K56: Outros | L56: especificar | M56: 0 | N56: kg N /TC | T56: Outros | U56: especificar | V56: 0 | W56: kg N /TC
B57: Outros | C57: especificar | D57: 0 | E57: kg P₂O₅/t cana | K57: Outros | L57: especificar | M57: 0 | N57: kg P2O5/TC | T57: Outros | U57: especificar | V57: 0 | W57: kg P2O5/TC
B58: Outros | C58: especificar | D58: 0 | E58: kg K₂O/t cana | K58: Outros | L58: especificar | M58: 0 | N58: kg K2O/TC | T58: Outros | U58: especificar | V58: 0 | W58: kg K2O/TC
B60: Fertilizantes Orgânicos/Organominerais | K60: Fertilizantes Orgânicos/Organominerais | T60: Fertilizantes Orgânicos/Organominerais
C61: Vinhaça | D61: 440.2 | E61: L/t cana | F61: Concentração de N | G61: 0.375 | H61: g N/L | L61: Vinhaça | M61: 616.28 | N61: L/t cana | O61: Concentração de N | P61: 0.375 | Q61: g N/L | U61: Vinhaça | V61: 440.2 | W61: L/t cana | X61: Concentração de N | Y61: 0.375 | Z61: g N/L
C62: Torta de Filtro (base úmida) | D62: 30.57142857 | E62: kg/t cana | F62: Concentração de N | G62: 14 | H62: g N/kg | L62: Torta de Filtro (base úmida) | M62: 42.8 | N62: kg/t cana | O62: Concentração de N | P62: 14 | Q62: g N/kg | U62: Torta de Filtro (base úmida) | V62: 30.57142857 | W62: kg/t cana | X62: Concentração de N | Y62: 14 | Z62: g N/kg
C63: Cinzas e fuligem (base úmida) | D63: 7.2 | E63: kg/t cana | F63: Concentração de N | H63: g N/kg | L63: Cinzas e fuligem (base úmida) | M63: 10.08 | N63: kg/t cana | O63: Concentração de N | Q63: g N/kg | U63: Cinzas e fuligem (base úmida) | V63: 7.2 | W63: kg/t cana | X63: Concentração de N | Z63: g N/kg
B64: Outros | C64: especificar | D64: 0 | E64: kg/t cana | F64: Concentração de N | H64: g N/kg | K64: Outros | L64: especificar | M64: 0 | N64: kg/t cana | O64: Concentração de N | Q64: g N/kg | T64: Outros | U64: especificar | V64: 0 | W64: kg/t cana | X64: Concentração de N | Z64: g N/kg
B65: Outros | C65: especificar | D65: 0 | E65: kg/t cana | F65: Concentração de N | H65: g N/kg | K65: Outros | L65: especificar | M65: 0 | N65: kg/t cana | O65: Concentração de N | Q65: g N/kg | T65: Outros | U65: especificar | V65: 0 | W65: kg/t cana | X65: Concentração de N | Z65: g N/kg
B67: Combustíveis e eletricidade da rede | K67: Combustíveis e eletricidade da rede | T67: Combustíveis e eletricidade da rede
C68: Diesel - B8 | D68: 3.18 | E68: L/t cana | L68: Diesel - B8 | M68: 4.452 | N68: L/t cana | U68: Diesel - B8 | V68: 3.18 | W68: L/t cana
C69: Diesel - B10 | D69: 0 | E69: L/t cana | L69: Diesel - B10 | M69: 0 | N69: L/t cana | U69: Diesel - B10 | V69: 0 | W69: L/t cana
C70: Diesel - BX | D70: 0 | E70: L/t cana | F70: Teor de biodiesel na mistura | G70: 0.11 | L70: Diesel - BX | M70: 0 | N70: L/t cana | O70: Teor médio de biodiesel na mistura | P70: 0.11 | Q70: % | U70: Diesel - BX | V70: 0 | W70: L/t cana | X70: Teor médio de biodiesel na mistura | Y70: 0.11 | Z70: %
C71: Diesel - B20 | D71: 0 | E71: L/t cana | L71: Diesel - B20 | M71: 0 | N71: L/t cana | U71: Diesel - B20 | V71: 0 | W71: L/t cana
C72: Diesel - B30 | D72: 0 | E72: L/t cana | L72: Diesel - B30 | M72: 0 | N72: L/t cana | U72: Diesel - B30 | V72: 0 | W72: L/t cana
C73: Biodiesel - B100 | D73: 0 | E73: L/t cana | L73: Biodiesel - B100 | M73: 0 | N73: L/t cana | U73: Biodiesel - B100 | V73: 0 | W73: L/t cana
C74: Gasolina C | D74: 0 | E74: L/t cana | L74: Gasolina C | M74: 0 | N74: L/t cana | U74: Gasolina C | V74: 0 | W74: L/t cana
C75: Etanol hidratado | D75: 0 | E75: L/t cana | L75: Etanol hidratado | M75: 0 | N75: L/t cana | U75: Etanol hidratado | V75: 0 | W75: L/t cana
C76: Biometano de terceiros | D76: 0 | E76: Nm³/t cana | L76: Biometano de terceiros | M76: 0 | N76: Nm³/t cana | U76: Biometano de terceiros | V76: 0 | W76: Nm³/t cana
C77: Biometano próprio | D77: 0 | E77: Nm³/t cana | L77: Biometano próprio | M77: 0 | N77: Nm³/t cana | U77: Biometano próprio | V77: 0 | W77: Nm³/t cana
C78: Eletricidade da rede - mix médio | D78: 0 | E78: kWh/t cana | L78: Eletricidade da rede - mix médio | M78: 0 | N78: kWh/t cana | U78: Eletricidade da rede - mix médio | V78: 0 | W78: kWh/t cana
C79: Eletricidade - PCH | D79: 0 | E79: kWh/t cana | L79: Eletricidade - PCH | M79: 0 | N79: kWh/t cana | U79: Eletricidade - PCH | V79: 0 | W79: kWh/t cana
C80: Eletricidade - biomassa | D80: 0 | E80: kWh/t cana | L80: Eletricidade - biomassa | M80: 0 | N80: kWh/t cana | U80: Eletricidade - biomassa | V80: 0 | W80: kWh/t cana
C81: Eletricidade - eólica | D81: 0 | E81: kWh/t cana | L81: Eletricidade - eólica | M81: 0 | N81: kWh/t cana | U81: Eletricidade - eólica | V81: 0 | W81: kWh/t cana
C82: Eletricidade - solar | D82: 0 | E82: kWh/t cana | L82: Eletricidade - solar | M82: 0 | N82: kWh/t cana | U82: Eletricidade - solar | V82: 0 | W82: kWh/t cana

Sheet Enderecos (hidden)
A1: Não alterar posições das informações nessa planilha!
B3: E1GC
C4: Usina | D4: Padrão | E4: Guarda valores primários
B5: Coluna valores | C5: =COLUMN('F1'!$D$35) -> 4 | D5: =COLUMN('F1'!$M$35) -> 13 | E5: =COLUMN('F1'!$V$35) -> 22
B6: Coluna Especificar | C6: =COLUMN('F1'!$C$56) -> 3 | D6: =COLUMN('F1'!$L$56) -> 12 | E6: =COLUMN('F1'!$U$56) -> 21
B7: Colunas % | C7: =COLUMN('F1'!$G$61) -> 7 | D7: =COLUMN('F1'!$P$61) -> 16 | E7: =COLUMN('F1'!$Y$61) -> 25
B8: Linha Área queimada | C8: =ROW('F1'!$D$35) -> 35
B9: Linha Corretivos (inicio) | C9: =ROW('F1'!$D$38) -> 38
B10: Linha Corretivos (fim) | C10: =ROW('F1'!$D$40) -> 40
B11: Linha Fertilizantes (inicio) | C11: =ROW('F1'!$D$43) -> 43
B12: Linha Fertilizantes (fim) | C12: =ROW('F1'!$D$58) -> 58
B13: Linha Fertilizantes ("especificar" inicio) | C13: =ROW('F1'!$C$56) -> 56
B14: Linha Fertilizantes ("especificar" fim) | C14: =ROW('F1'!$C$58) -> 58
B15: Linha Fertilizantes org. (inicio) | C15: =ROW('F1'!$D$61) -> 61
B16: Linha Fertilizantes org. (fim) | C16: =ROW('F1'!$D$65) -> 65
B17: Linha Fertilizantes org. ("especificar" inicio) | C17: =ROW('F1'!$C$64) -> 64
B18: Linha Fertilizantes org. ("especificar" fim) | C18: =ROW('F1'!$C$65) -> 65
B19: Linha Combust. (inicio) | C19: =ROW('F1'!$D$68) -> 68
B20: Linha Combust. (fim) | C20: =ROW('F1'!$D$82) -> 82
B21: Linha BX | C21: =ROW('F1'!$G$70) -> 70
B22: Linha default/primario | C22: =ROW('F1'!$V$31) -> 31
B23: Coluna default/primario | C23: =COLUMN('F1'!$V$31) -> 22
B24: Área total | C24: =ROW('F1'!$D$23) -> 23

Sheet Listas (hidden)
C2: Sim
C3: Não
C5: Ativo
C6: Pendente
C7: Cancelado
C9: Convencional
C10: Direto
C11: Mínimo/Reduzido
